bitfinex/quotes_BTCUSD_20251226
["timestamp","ask_amount","ask_price","bid_price","bid_amount"]
[1766761484778,0.01145304,87313.0,87307.0,0.00010766]
[1766761484991,0.01145226,87319.0,87307.0,0.00010766]
[1766761485215,0.01145304,87313.0,87307.0,0.00010766]
[1766761485358,0.05726823,87309.0,87307.0,0.00010766]
[1766761485802,0.01145344,87310.0,87307.0,0.00010766]
[1766761486098,0.05726786,87309.0,87307.0,0.00010766]
[1766761486241,0.01145291,87314.0,87262.0,0.12365327]
[1766761486242,0.01145567,87293.0,87280.0,0.04584]
[1766761486463,0.06873616,87291.0,87280.0,0.00035958]
[1766761486667,0.0114558,87292.0,87281.0,0.08418]
[1766761487074,0.0114554,87295.0,87281.0,0.08418]
[1766761487273,0.45801824,87333.0,87281.0,0.08418]
[1766761487481,0.01145317,87312.0,87281.0,0.08418]
[1766761487677,0.01145396,87306.0,87281.0,0.08418]
[1766761487921,0.0687262,87303.0,87282.0,0.00918095]
[1766761488248,0.01145396,87306.0,87282.0,0.00918095]
[1766761488451,0.01145396,87306.0,87283.0,0.07234]
[1766761488452,0.01145475,87300.0,87283.0,0.07234]
[1766761488911,0.01145436,87303.0,87283.0,0.07234]
[1766761489132,0.2290562,87315.0,87283.0,0.07234]
[1766761489133,0.05727262,87302.0,87283.0,0.07234]
[1766761489385,0.06872711,87302.0,87283.0,0.07234]
[1766761489594,0.01145449,87302.0,87283.0,0.07234]
[1766761489826,5.05,87344.0,87285.0,0.07007]
[1766761490039,0.03839637,87366.0,87284.0,0.12365327]
[1766761490040,0.01184,87343.0,87301.0,0.08152462]
[1766761490370,0.00060115,87311.0,87303.0,0.07007]
[1766761490451,1.15e-06,87311.0,87309.0,0.07007]
[1766761490661,0.01184,87354.0,87311.0,0.07007]
[1766761490853,0.0114499,87337.0,87311.0,0.07007]
[1766761491053,0.01144963,87339.0,87311.0,0.07007]
[1766761491261,0.0114478,87353.0,87315.0,0.07007]
[1766761491459,0.4,87420.0,87319.0,0.07007]
[1766761491460,9.8e-07,87320.0,87319.0,0.07007]
[1766761491710,0.01144806,87351.0,87319.0,0.01184]
[1766761491912,0.01144937,87341.0,87320.0,0.07007]
[1766761492101,0.01144937,87341.0,87321.0,0.07007]
[1766761492307,0.01145029,87334.0,87321.0,0.07007]
[1766761492422,0.0114516,87324.0,87304.0,0.11591]
[1766761492627,0.0114516,87324.0,87278.0,0.01145764]
[1766761492628,0.01145186,87322.0,87305.0,0.07007]
[1766761492845,0.01145186,87322.0,87306.0,0.01184]
[1766761493068,0.01145147,87325.0,87306.0,0.01184]
[1766761493267,0.01145108,87328.0,87306.0,0.01184]
[1766761493609,0.01145357,87309.0,87306.0,0.0001076]
[1766761493769,0.01145632,87288.0,87255.0,0.01184]
[1766761493970,0.13756,87344.0,87255.0,0.01184]
[1766761493971,0.01145659,87286.0,87256.0,0.08191]
[1766761494174,0.01145685,87284.0,87256.0,0.07007]
[1766761494377,0.01145685,87284.0,87255.0,0.00035958]
[1766761494378,0.01145488,87299.0,87259.0,0.07007]
[1766761494581,0.0102127,87298.0,87261.0,0.07007]
[1766761494741,0.01145698,87283.0,87261.0,0.07007]
[1766761495211,0.0114579,87276.0,87261.0,0.07007]
[1766761495355,0.01145724,87281.0,87261.0,0.07007]
[1766761495558,0.24096131,87291.0,87261.0,0.07007]
[1766761495559,0.01145869,87270.0,87261.0,0.07007]
[1766761496180,0.05729542,87267.0,87255.0,0.00035958]
[1766761496346,0.01145947,87264.0,87255.0,0.00035958]
[1766761496554,0.01146,87260.0,87250.0,0.01184]
[1766761496759,0.01145987,87261.0,87250.0,0.00010774]
[1766761496965,0.01145567,87293.0,87251.0,0.07007]
[1766761497162,0.07679146,87316.0,87250.0,0.00830951]
[1766761497163,0.06874546,87279.0,87253.0,0.07007]
[1766761497363,0.01145777,87277.0,87254.0,0.01184]
[1766761497559,0.01145803,87275.0,87254.0,0.01184]
[1766761497833,0.02357404,87288.0,87254.0,0.01184]
[1766761497834,0.01023449,87274.0,87255.0,0.00902195]
[1766761498017,0.0114575,87279.0,87254.0,0.08191]
[1766761498231,0.01024245,87278.0,87254.0,0.08191]
[1766761498377,0.01024245,87277.0,87254.0,0.08191]
[1766761498717,0.02170035,87276.0,87254.0,0.08191]
[1766761499016,0.01024245,87275.0,87254.0,0.08191]
[1766761499228,0.01184,87281.0,87255.0,0.07007]
[1766761499429,0.01023614,87280.0,87255.0,0.07007]
[1766761499634,0.01145554,87294.0,87257.0,0.07007]
[1766761499791,0.02398278,87293.0,87259.0,0.07007]
[1766761500004,0.01023639,87292.0,87259.0,0.07007]
[1766761500210,0.01023639,87292.0,87255.0,0.01146066]
[1766761500211,0.01023639,87292.0,87265.0,0.07007]
[1766761500403,0.05759456,87324.0,87264.0,0.13511274]
[1766761500404,0.02358153,87320.0,87278.0,0.12365327]
[1766761500600,0.05727401,87300.0,87279.0,0.08191]
[1766761500802,0.00687281,87300.0,87279.0,0.06407]
[1766761501017,0.00687281,87300.0,87226.0,0.38393239]
[1766761501018,0.01145777,87277.0,87262.0,0.05983361]
[1766761501195,0.01146013,87259.0,87228.0,0.07007]
[1766761501394,0.01146013,87259.0,87220.0,0.04584]
[1766761501395,0.01184,87264.0,87230.0,0.07007]
[1766761501669,0.22919221,87263.0,87230.0,0.07017774]
[1766761501870,0.01184,87264.0,87230.0,0.07017774]
[1766761501871,0.01146263,87240.0,87230.0,0.07017774]
[1766761502095,0.01146171,87247.0,87213.0,0.04584]
[1766761502096,0.01146368,87232.0,87213.0,0.11591]
[1766761502259,0.01146473,87224.0,87213.0,0.06417791]
[1766761502457,0.01146447,87226.0,87213.0,0.00010791]
[1766761502695,0.22925874,87238.0,87213.0,0.00010791]
[1766761502696,0.01184,87233.0,87214.0,0.07007]
[1766761502878,0.01184,87233.0,87202.0,1e-08]
[1766761502879,0.0114667,87209.0,87202.0,1e-08]
[1766761503057,0.1079,87203.0,87202.0,1e-08]
[1766761503260,0.05733723,87204.0,87202.0,1e-08]
[1766761503464,0.05733723,87204.0,87174.0,0.07007]
[1766761503465,0.01146986,87185.0,87174.0,0.07007]
[1766761503642,0.01184,87185.0,87174.0,0.07007]
[1766761503845,0.01147144,87173.0,87157.0,0.01184]
[1766761504048,0.01147144,87173.0,87117.0,0.24765672]
[1766761504049,0.05736049,87168.0,87166.0,3.76e-06]
[1766761504258,0.06915157,87172.0,87166.0,3.76e-06]
[1766761504259,0.0114717,87171.0,87166.0,3.76e-06]
[1766761504465,0.06883226,87169.0,87166.0,3.76e-06]
[1766761504829,0.01146946,87188.0,87166.0,3.76e-06]
[1766761505041,0.05736049,87168.0,87142.0,0.01184]
[1766761505246,0.01147275,87163.0,87138.0,0.07007]
[1766761505445,0.01147315,87160.0,87138.0,0.07007]
[1766761505610,5.05,87166.0,87138.0,0.07007]
[1766761505611,0.0114742,87152.0,87138.0,0.07007]
[1766761505822,0.01184,87151.0,87094.0,0.07007]
[1766761506022,0.01147736,87128.0,87095.0,0.077097]
[1766761506202,0.01184,87127.0,87095.0,0.07007]
[1766761506412,0.0114796,87111.0,87095.0,0.07007]
[1766761506613,0.05739704,87113.0,87095.0,0.07007]
[1766761506614,0.01184,87110.0,87095.0,0.07042987]
[1766761506843,0.01147855,87119.0,87095.0,0.07042987]
[1766761507020,0.01148158,87096.0,87075.0,0.08191]
[1766761507368,0.4257,87121.0,87093.0,0.0005595]
[1766761507535,0.05739866,87111.0,87093.0,0.0005595]
[1766761507741,0.04268673,87120.0,87093.0,0.0005595]
[1766761507945,0.01147947,87112.0,87093.0,0.0005595]
[1766761508125,0.01147921,87114.0,87093.0,0.0005595]
[1766761508325,0.01184,87113.0,87075.0,0.08191]
[1766761508521,0.01148066,87103.0,87077.0,0.07007]
[1766761508720,0.01148092,87101.0,87077.0,0.07007]
[1766761508930,0.02332079,87102.0,87077.0,0.07007]
[1766761509133,0.0003581,87113.0,87077.0,0.07007]
[1766761509352,0.0003581,87113.0,87079.0,0.07007]
[1766761509635,0.01044,87112.0,87081.0,0.07007]
[1766761510006,0.01147947,87112.0,87081.0,0.07007]
[1766761510241,0.05775539,87113.0,87082.0,0.00059913]
[1766761510242,0.01148052,87104.0,87082.0,0.00059913]
[1766761510352,0.01148118,87099.0,87081.0,0.07007]
[1766761510562,0.01184,87098.0,87081.0,0.06151966]
[1766761510967,0.01184,87098.0,87097.0,0.00217258]
[1766761511242,0.01184,87103.0,87097.0,0.00217258]
[1766761511378,0.01184,87103.0,87081.0,0.06151966]
[1766761511581,0.22957332,87119.0,87081.0,0.06151966]
[1766761511582,0.01184,87104.0,87082.0,0.00615197]
[1766761511782,0.01184,87104.0,87081.0,0.06151966]
[1766761511984,0.01148237,87090.0,87062.0,0.07007]
[1766761512183,0.01148118,87099.0,87064.0,0.07007]
[1766761512385,0.01148131,87098.0,87064.0,0.07007]
[1766761512619,0.0114829,87086.0,87064.0,0.07007]
[1766761512776,0.01148158,87096.0,87065.0,0.00059938]
[1766761512990,0.01148211,87092.0,87066.0,0.07007]
[1766761513196,0.01184,87091.0,87066.0,0.07007]
[1766761513623,0.01148303,87085.0,87066.0,0.07007]
[1766761513829,2.4679,87112.0,87066.0,0.07017783]
[1766761514061,0.01148237,87090.0,87068.0,0.07007]
[1766761514267,0.01148303,87085.0,87068.0,0.07007]
[1766761514559,0.01148237,87090.0,87068.0,0.07007]
[1766761514560,0.01148395,87078.0,87068.0,0.07007]
[1766761514736,0.0114829,87086.0,87068.0,0.07007]
[1766761514938,0.01148448,87074.0,87068.0,0.07007]
[1766761515107,0.01148448,87074.0,87066.0,0.00010783]
[1766761515305,0.01148461,87073.0,87066.0,0.00010783]
[1766761515506,0.01148342,87082.0,87066.0,0.00010783]
[1766761515704,0.05742044,87077.0,87066.0,0.00010783]
[1766761515908,0.05742637,87068.0,87066.0,0.00010783]
[1766761516109,0.01148514,87069.0,87052.0,0.01184]
[1766761516308,0.01148501,87070.0,87052.0,0.01184]
[1766761516550,0.0114858,87064.0,87052.0,0.01184]
[1766761516945,0.06892078,87057.0,87050.0,0.0001]
[1766761517169,0.0574321,87060.0,87050.0,0.0001]
[1766761517170,0.01148659,87058.0,87050.0,0.0001]
[1766761517370,0.22969524,87072.0,87050.0,0.0001]
[1766761517371,0.01184,87084.0,87050.0,0.0001]
[1766761517551,0.06887449,87115.0,87068.0,0.06879]
[1766761517751,0.06887449,87115.0,87070.0,0.06879]
[1766761517752,0.00010739,87115.0,87070.0,0.06879]
[1766761518008,0.00010739,87115.0,87072.0,0.06879]
[1766761518009,0.01148263,87088.0,87072.0,0.06879]
[1766761518136,0.0114825,87089.0,87051.0,0.06879]
[1766761518341,0.01148316,87084.0,87053.0,0.06879]
[1766761518640,0.01148567,87065.0,87053.0,0.06879]
[1766761518861,0.01148501,87070.0,87049.0,0.01184]
[1766761519067,0.01184,87080.0,87036.0,0.06879]
[1766761519068,0.05743283,87059.0,87036.0,0.06879]
[1766761519277,0.05743338,87058.0,87024.0,0.06879]
[1766761519496,0.01148778,87049.0,87025.0,0.01184]
[1766761519672,0.01184,87069.0,87026.0,0.05776]
[1766761519881,0.01148791,87048.0,87027.0,0.06879]
[1766761520045,0.01148923,87038.0,87027.0,0.06879]
[1766761520254,0.01148831,87045.0,87027.0,0.01184]
[1766761520506,0.01148725,87053.0,87027.0,0.01184]
[1766761520792,0.01148791,87048.0,87027.0,0.01184]
[1766761520989,0.0114887,87042.0,87027.0,0.01184]
[1766761521190,0.01148791,87048.0,87027.0,0.01184]
[1766761521365,0.01148791,87048.0,87024.0,0.0001079]
[1766761521366,0.05744672,87038.0,87024.0,0.0001079]
[1766761521540,0.01148857,87043.0,87024.0,0.0001079]
[1766761521719,0.01148844,87044.0,87025.0,0.01184]
[1766761521934,0.01148883,87041.0,87025.0,0.01184]
[1766761522133,0.00948897,87040.0,87024.0,0.0001079]
[1766761522357,0.06893083,87044.0,87025.0,0.01184]
[1766761522556,0.01148857,87043.0,87025.0,0.01184]
[1766761522733,0.01148844,87044.0,87025.0,0.01184]
[1766761522937,0.05744165,87045.0,87025.0,0.01184]
[1766761523189,0.01148976,87034.0,87024.0,0.0119479]
[1766761523401,0.01148989,87033.0,87025.0,0.01184]
[1766761523604,0.01148976,87034.0,87024.0,0.0001079]
[1766761523736,0.22974509,87053.0,87024.0,0.0001079]
[1766761523936,0.01148857,87043.0,87024.0,0.0001079]
[1766761524237,0.04592,87064.0,87024.0,0.0001079]
[1766761524396,0.0574431,87043.0,87024.0,0.0119479]
[1766761524609,0.01148897,87040.0,87024.0,0.0119479]
[1766761524908,0.01148844,87044.0,87024.0,0.0119479]
[1766761525107,0.01148883,87041.0,87024.0,0.0119479]
[1766761525315,0.05744982,87033.0,87024.0,0.0119479]
[1766761525471,0.01148883,87041.0,87024.0,0.0001079]
[1766761525687,0.0114891,87039.0,87024.0,0.0001079]
[1766761526086,0.34457196,87065.0,87024.0,0.0001079]
[1766761526087,1.14810279,87101.0,87025.0,0.08122993]
[1766761526305,5.05,87052.0,87026.0,0.01272978]
[1766761526469,0.2621,87052.0,87026.0,0.01272978]
[1766761526669,0.4,87100.0,87025.0,0.06879]
[1766761526896,0.4,87100.0,87024.0,0.0001079]
[1766761526897,0.01148897,87040.0,87026.0,0.01184]
[1766761527129,0.01148857,87043.0,87012.0,0.04596]
[1766761527365,0.00010732,87043.0,87013.0,0.08063]
[1766761527588,0.01148897,87040.0,87013.0,0.08063]
[1766761527784,0.00010732,87043.0,87013.0,0.06879]
[1766761527785,0.01149015,87031.0,87013.0,0.06879]
[1766761528042,0.0114891,87039.0,87014.0,0.01184]
[1766761528203,0.01184,87041.0,87014.0,0.01184]
[1766761528548,0.00010732,87043.0,87015.0,0.06879]
[1766761529083,0.00010732,87043.0,87027.0,0.01149068]
[1766761529286,0.0574239,87072.0,87029.0,0.06879]
[1766761529441,0.01148553,87066.0,87030.0,0.02105211]
[1766761529599,5.05,87063.0,87031.0,0.0578]
[1766761529800,0.05743033,87062.0,87032.0,0.06879]
[1766761529999,0.01148751,87051.0,87033.0,0.01184]
[1766761530267,5.05,87057.0,87034.0,0.01184]
[1766761530566,5.0437,87054.0,87030.0,0.01184]
[1766761530765,5.0437,87054.0,87008.0,0.08028319]
[1766761530766,0.01148765,87050.0,87008.0,0.06879]
[1766761531062,0.01184,87054.0,87019.0,0.04596]
[1766761531221,0.05744287,87043.0,87008.0,0.06879]
[1766761531421,5.05,87050.0,87010.0,0.06879]
[1766761531642,0.01148804,87047.0,87012.0,0.06879]
[1766761531847,0.06892651,87050.0,87012.0,0.06879]
[1766761531848,0.0114891,87039.0,87012.0,0.06879]
[1766761532181,0.01148883,87041.0,87013.0,0.01184]
[1766761532465,0.01148883,87041.0,87013.0,0.01194732]
[1766761532761,0.06893224,87042.0,87014.0,0.06879]
[1766761532968,0.01148989,87033.0,87014.0,0.06879]
[1766761533179,0.01148976,87034.0,87014.0,0.04596]
[1766761533480,0.01148989,87033.0,87014.0,0.04596]
[1766761533626,0.01149029,87030.0,87014.0,0.04596]
[1766761533825,0.01149187,87018.0,87013.0,0.00010732]
[1766761534068,0.01149174,87019.0,87013.0,0.00010732]
[1766761534412,0.01149147,87021.0,87011.0,0.01184]
[1766761534596,0.00010784,87021.0,87011.0,0.01184]
[1766761534798,0.00010784,87021.0,86998.0,0.06879]
[1766761534977,2.3988,87020.0,86984.0,0.06879]
[1766761535185,2.3988,87020.0,86986.0,0.06879]
[1766761535507,0.01149187,87018.0,86987.0,0.012659]
[1766761535749,0.01149187,87018.0,86986.0,0.06879]
[1766761535750,0.011492,87017.0,86986.0,0.06879]
[1766761535952,0.01149187,87018.0,86986.0,0.06879]
[1766761536153,0.01149227,87015.0,86986.0,0.06879]
[1766761536346,5.06149161,87020.0,87017.0,0.0006949]
[1766761536504,0.01149227,87015.0,86999.0,0.01184]
[1766761536703,0.0114924,87014.0,86999.0,0.01184]
[1766761536950,0.01149253,87013.0,86998.0,0.01184]
[1766761537244,0.01149266,87012.0,86998.0,0.01184]
[1766761537465,0.05746135,87015.0,86998.0,0.01184]
[1766761537693,0.01149266,87012.0,86986.0,0.06879]
[1766761537862,0.01149293,87010.0,86987.0,0.01184]
[1766761538069,0.01149266,87012.0,86987.0,0.01184]
[1766761538070,0.01149266,87012.0,86988.0,0.01184]
[1766761538272,0.01149187,87018.0,86988.0,0.01184]
[1766761538591,0.01601942,87017.0,86986.0,0.06879]
[1766761538794,0.01733097,87017.0,86990.0,0.06879]
[1766761539337,0.01018583,87016.0,86990.0,0.06879]
[1766761539669,0.01018574,87015.0,86991.0,0.01184]
[1766761539895,5.05,87020.0,86991.0,0.01184]
[1766761540197,0.0114924,87014.0,86991.0,0.024499]
[1766761540401,0.01149266,87012.0,86991.0,0.01184]
[1766761540558,0.0114924,87014.0,86991.0,0.01184]
[1766761540783,0.01149279,87011.0,86992.0,0.01184]
[1766761540983,0.01149293,87010.0,86993.0,0.01184]
[1766761541184,0.02988029,87009.0,86976.0,0.06879]
[1766761541386,0.01149372,87004.0,86978.0,0.06899]
[1766761541729,0.01149372,87004.0,86979.0,0.06879]
[1766761541882,0.01184,87009.0,86979.0,0.06879]
[1766761542095,0.01019183,87008.0,86981.0,0.06879]
[1766761542289,0.01019537,87007.0,86981.0,0.06879]
[1766761542608,0.01149385,87003.0,86983.0,0.06879]
[1766761542807,0.01149359,87005.0,86983.0,0.06879]
[1766761543011,0.02168863,87004.0,86984.0,0.01184]
[1766761543208,0.01149385,87003.0,86984.0,0.01184]
[1766761543780,0.01149398,87002.0,86984.0,0.01184]
[1766761543936,0.01149425,87000.0,86984.0,0.01184]
[1766761544284,5.05,87020.0,87000.0,0.00019]
[1766761544417,0.01149346,87006.0,87000.0,0.00019]
[1766761544601,0.02874969,87032.0,87007.0,0.03815517]
[1766761544801,0.01020506,87020.0,87007.0,0.03815517]
[1766761545029,0.01020506,87019.0,87007.0,0.03815517]
[1766761545230,0.01184,87035.0,87007.0,0.03815517]
[1766761545405,0.01149134,87022.0,87008.0,0.01184]
[1766761545623,0.01149147,87021.0,86991.0,0.06805]
[1766761545842,0.00010788,87022.0,86993.0,0.06805]
[1766761546047,0.01149161,87020.0,86994.0,0.05784]
[1766761546242,0.00010788,87022.0,86995.0,0.06805]
[1766761546556,8.8e-07,87022.0,86995.0,0.06805]
[1766761547084,8.8e-07,87022.0,87004.0,0.06805]
[1766761547269,8.8e-07,87022.0,87006.0,0.06805]
[1766761547857,8.8e-07,87022.0,86985.0,0.01149623]
[1766761547858,0.05830937,87070.0,87011.0,0.06805]
[1766761548056,0.01148725,87053.0,87012.0,0.01184]
[1766761548239,0.01148646,87059.0,87013.0,0.06805]
[1766761548444,0.01148646,87059.0,87012.0,0.0693031]
[1766761548445,0.01184,87058.0,87024.0,0.06805]
[1766761548655,0.22980856,87070.0,87058.0,0.000442]
[1766761548656,0.00010796,87070.0,87058.0,0.000442]
[1766761549052,0.00010796,87070.0,87038.0,0.05744587]
[1766761549053,0.01148553,87066.0,87039.0,0.01184]
[1766761549258,0.24154287,87069.0,87028.0,0.06805]
[1766761549259,0.05743708,87052.0,87028.0,0.06805]
[1766761549460,0.000549,87039.0,87029.0,0.01184]
[1766761549705,0.000549,87039.0,87029.0,0.07989]
[1766761549884,0.01184,87061.0,87029.0,0.07989]
[1766761550683,0.01148646,87059.0,87029.0,0.07989]
[1766761550929,0.01148646,87059.0,87011.0,0.05746392]
[1766761550930,0.01148923,87038.0,87011.0,0.11405]
[1766761551157,0.000549,87029.0,87013.0,0.06805]
[1766761551339,0.01148936,87037.0,87014.0,0.01184]
[1766761551543,0.01148936,87037.0,87013.0,0.06805]
[1766761551544,0.01149055,87028.0,87015.0,0.01184]
[1766761551802,0.01148963,87035.0,87013.0,0.01184]
[1766761551994,0.01149042,87029.0,87013.0,0.01184]
[1766761552224,1.0029,87045.0,87013.0,0.07989]
[1766761552474,0.25723044,87100.0,87013.0,0.07989]
[1766761552475,0.0114858,87064.0,87017.0,0.06805]
[1766761552661,0.3807,87084.0,87043.0,0.06805]
[1766761552797,0.046,87085.0,87064.0,0.00055]
[1766761552798,0.01148382,87079.0,87064.0,0.00055]
[1766761552995,0.06890256,87080.0,87056.0,2e-08]
[1766761553199,0.01184,87083.0,87056.0,0.07989]
[1766761553397,0.01184,87091.0,87058.0,0.06805]
[1766761553601,0.12572761,87090.0,87058.0,0.06805]
[1766761553800,0.0114825,87089.0,87058.0,0.06805]
[1766761554317,0.06889504,87089.0,87058.0,0.06805]
[1766761554524,0.01184253,87090.0,87044.0,0.00795387]
[1766761554525,0.05742068,87077.0,87044.0,0.00795387]
[1766761554741,0.01148369,87080.0,87046.0,0.06805]
[1766761554969,0.01184253,87090.0,87048.0,0.06805]
[1766761555130,0.00036016,87090.0,87064.0,0.06805]
[1766761555464,0.00036016,87090.0,87063.0,0.12402317]
[1766761555465,1.6e-07,87090.0,87066.0,0.06805]
[1766761555889,0.01148277,87087.0,87066.0,0.06805]
[1766761556081,1.6e-07,87090.0,87068.0,0.06805]
[1766761556310,1.6e-07,87090.0,87068.0,0.080635]
[1766761556513,1.6e-07,87090.0,87070.0,0.06805]
[1766761556668,0.01184,87114.0,87083.0,0.05741619]
[1766761556861,0.01184,87114.0,87069.0,0.12402317]
[1766761556862,0.00010797,87114.0,87084.0,0.18182317]
[1766761557146,0.00010797,87114.0,87090.0,0.01148237]
[1766761557386,0.01158718,87114.0,87091.0,0.06805]
[1766761557580,0.01158718,87114.0,87081.0,0.06805]
[1766761557581,0.000549,87090.0,87081.0,0.06805]
[1766761557876,0.01148079,87102.0,87081.0,0.07989]
[1766761558094,0.00010797,87114.0,87081.0,0.07989]
[1766761558095,0.01148211,87092.0,87081.0,0.07989]
[1766761558295,0.2295911,87112.0,87067.0,0.04596]
[1766761558296,0.01148066,87103.0,87079.0,0.01184]
[1766761558533,0.01148092,87101.0,87079.0,0.01184]
[1766761558759,0.20596817,87160.0,87079.0,0.07989]
[1766761558965,0.0573824,87135.0,87087.0,0.06805]
[1766761559170,0.01147763,87126.0,87089.0,0.06805]
[1766761559363,0.05738643,87129.0,87089.0,0.06805]
[1766761559594,0.05738804,87127.0,87089.0,0.06805]
[1766761559772,0.01147697,87131.0,87096.0,0.06805]
[1766761560032,0.01147723,87129.0,87098.0,0.06805]
[1766761560202,0.04596,87138.0,87098.0,0.06805]
[1766761560471,0.06886752,87124.0,87100.0,0.06805]
[1766761560697,0.01184,87131.0,87100.0,0.0806949]
[1766761560917,0.01147749,87127.0,87100.0,0.06805]
[1766761561115,0.06886778,87124.0,87100.0,0.06815797]
[1766761561246,0.01147578,87140.0,87100.0,0.06815797]
[1766761561447,0.01147789,87124.0,87102.0,0.06805]
[1766761561646,0.01147552,87142.0,87104.0,0.06805]
[1766761561854,0.0004,87146.0,87115.0,0.06805]
[1766761562048,0.0004,87146.0,87113.0,0.12402317]
[1766761562049,0.0004,87146.0,87117.0,0.06805]
[1766761562249,0.0004,87146.0,87118.0,0.0578]
[1766761562449,0.0004,87146.0,87119.0,0.06805]
[1766761562676,0.0004,87146.0,87118.0,0.0578]
[1766761562677,0.0004,87146.0,87121.0,0.06805]
[1766761562876,0.01147131,87174.0,87137.0,0.06805]
[1766761563052,0.05736553,87161.0,87137.0,0.06805]
[1766761563277,0.01147433,87151.0,87138.0,0.01184]
[1766761563435,0.01147341,87158.0,87138.0,0.01129]
[1766761563636,0.01147525,87144.0,87137.0,0.06805]
[1766761563884,0.01147407,87153.0,87137.0,0.07989]
[1766761564083,0.01147499,87146.0,87137.0,0.07989]
[1766761564257,0.01147512,87145.0,87137.0,0.06805]
[1766761564458,0.01147486,87147.0,87137.0,0.06805]
[1766761564659,0.01147446,87150.0,87137.0,0.06805]
[1766761564862,0.00010785,87153.0,87139.0,0.06805]
[1766761565109,0.01147196,87169.0,87150.0,0.00024938]
[1766761565317,0.05735972,87170.0,87138.0,0.007989]
[1766761565318,0.01147157,87172.0,87151.0,0.01184]
[1766761565445,0.01184,87180.0,87151.0,0.01184]
[1766761565446,0.01147065,87179.0,87152.0,0.06805]
[1766761565649,0.01184,87188.0,87152.0,0.06805]
[1766761565851,0.04596,87195.0,87151.0,0.01194785]
[1766761565852,0.05742854,87195.0,87154.0,0.06805]
[1766761566126,0.01146644,87211.0,87169.0,0.06805]
[1766761566498,0.01184,87226.0,87179.0,0.06805]
[1766761566670,0.01146434,87227.0,87188.0,0.06805]
[1766761566872,0.0114642,87228.0,87190.0,0.06805]
[1766761567101,0.01146499,87222.0,87191.0,0.06805]
[1766761567304,0.01146591,87215.0,87191.0,0.06805]
[1766761567512,0.01184,87243.0,87192.0,0.2595521]
[1766761567715,0.01295534,87234.0,87202.0,0.06805]
[1766761567933,0.01295534,87234.0,87207.0,0.06805]
[1766761568142,0.01146118,87251.0,87221.0,0.06805]
[1766761568343,0.01145764,87278.0,87238.0,0.2477121]
[1766761568547,0.0114579,87276.0,87240.0,0.06805]
[1766761568885,0.0114579,87276.0,87228.0,0.0114642]
[1766761568886,0.01145842,87272.0,87242.0,0.06805]
[1766761569090,0.01145842,87272.0,87241.0,0.05776]
[1766761569091,0.00010775,87278.0,87245.0,0.06805]
[1766761569286,0.05727704,87295.0,87251.0,0.06805]
[1766761569549,0.01145711,87282.0,87253.0,0.06805]
[1766761569835,0.04592,87313.0,87253.0,0.06720052]
[1766761569836,0.01145934,87265.0,87253.0,0.06720052]
[1766761570011,0.01184,87288.0,87255.0,0.06805]
[1766761570221,0.04592,87313.0,87255.0,0.06805]
[1766761570222,0.01184,87300.0,87255.0,0.06805]
[1766761570572,0.04592,87313.0,87257.0,0.06805]
[1766761570573,0.01145606,87290.0,87257.0,0.06805]
[1766761570777,0.01145593,87291.0,87259.0,0.06805]
[1766761571003,0.05728278,87287.0,87259.0,0.06805]
[1766761571203,0.01184,87305.0,87260.0,0.01184]
[1766761571387,0.01184,87305.0,87252.0,0.11397]
[1766761571388,0.01145961,87263.0,87252.0,0.06805]
[1766761571580,0.00055,87260.0,87253.0,0.01184]
[1766761571803,0.01146013,87259.0,87251.0,0.00010775]
[1766761572000,0.01146066,87255.0,87233.0,0.06805]
[1766761572203,0.01146315,87236.0,87233.0,0.06815787]
[1766761572420,2.13e-06,87233.0,87217.0,0.06805]
[1766761572738,0.4,87320.0,87206.0,0.2477121]
[1766761572739,0.01145895,87268.0,87237.0,0.06794239]
[1766761572914,0.01145895,87268.0,87220.0,0.2477121]
[1766761572915,0.0115667,87268.0,87239.0,0.06805]
[1766761573243,0.01145921,87266.0,87240.0,0.06805]
[1766761573460,0.01146066,87255.0,87241.0,0.01184]
[1766761573607,0.01146079,87254.0,87242.0,0.01184]
[1766761573825,0.01146131,87250.0,87227.0,0.06805]
[1766761574022,0.01146276,87239.0,87228.0,0.06805]
[1766761574179,0.06223556,87292.0,87228.0,0.06805]
[1766761574180,0.01146381,87231.0,87228.0,0.06805]
[1766761574380,0.01146447,87226.0,87211.0,0.06785]
[1766761574737,0.05732038,87229.0,87212.0,0.01184]
[1766761574938,0.01146368,87232.0,87212.0,0.01184]
[1766761575154,0.06878067,87234.0,87212.0,0.01184]
[1766761575155,0.01146342,87234.0,87212.0,0.01184]
[1766761575361,0.0114646,87225.0,87212.0,0.00035981]
[1766761575567,0.0114646,87225.0,87213.0,0.01184]
[1766761575686,0.01146486,87223.0,87212.0,0.01183981]
[1766761576073,0.0114646,87225.0,87212.0,0.01184]
[1766761576266,0.01146447,87226.0,87212.0,0.01184]
[1766761576423,0.04592,87260.0,87212.0,0.07969]
[1766761576618,0.22922074,87253.0,87212.0,0.07969]
[1766761576849,0.01146539,87219.0,87173.0,0.01147144]
[1766761577056,0.01146631,87212.0,87190.0,0.06785]
[1766761577261,0.01146618,87213.0,87191.0,0.01184]
[1766761577473,0.01146578,87216.0,87191.0,0.024397]
[1766761577671,0.00035907,87219.0,87192.0,0.06785]
[1766761577849,0.01182446,87219.0,87192.0,0.06785]
[1766761578046,0.00035907,87219.0,87192.0,0.06785]
[1766761578244,0.06879641,87214.0,87193.0,0.01184]
[1766761578487,0.0114667,87209.0,87194.0,0.0092247]
[1766761578693,0.0114667,87209.0,87192.0,0.06785]
[1766761578694,0.05733583,87206.0,87192.0,0.06785]
[1766761578898,0.01146736,87204.0,87192.0,0.06785]
[1766761579097,0.00035907,87219.0,87192.0,0.06785]
[1766761579098,0.01146854,87195.0,87192.0,0.01184]
[1766761579308,0.01146881,87193.0,87175.0,0.04588]
[1766761579505,0.01146907,87191.0,87176.0,0.01184]
[1766761579680,0.01146841,87196.0,87176.0,0.01184]
[1766761579681,0.01146881,87193.0,87176.0,0.01184]
[1766761579881,0.01146946,87188.0,87174.0,0.06785]
[1766761580094,0.06880862,87199.0,87175.0,0.01184]
[1766761580287,0.01146828,87197.0,87175.0,0.01184]
[1766761580495,0.00917437,87197.0,87175.0,0.01184]
[1766761580691,0.01146894,87192.0,87174.0,0.06785]
[1766761580891,0.01146894,87192.0,87145.0,0.01147512]